bitfinex/quotes_SOLUSD_20250721
["timestamp","ask_amount","ask_price","bid_price","bid_amount"]
[1753123157907,39.40257068,194.66,194.65,0.68]
[1753123158413,88.5,194.69,194.65,12.45483388]
[1753123158606,2.57746487,194.72,194.68,6.63740774]
[1753123158811,88.5,194.74,194.71,6.63740774]
[1753123159108,36.84,194.73,194.72,0.68]
[1753123159932,36.84,194.73,194.67,0.68]
[1753123160129,44.15740774,194.73,194.67,0.68]
[1753123160440,44.15740774,194.73,194.67,6.63740774]
[1753123160627,36.84,194.73,194.7,6.63740774]
[1753123160829,36.84,194.73,194.71,7.31740774]
[1753123161140,36.84,194.73,194.72,7.31740774]
[1753123161307,7.31740774,194.81,194.72,7.31740774]
[1753123161509,36.84,194.8,194.75,6.63740774]
[1753123161910,36.84,194.79,194.77,6.63740774]
[1753123162115,36.84,194.79,194.76,6.63740774]
[1753123162116,39.40664452,194.79,194.76,6.63740774]
[1753123162728,39.40664452,194.79,194.76,11.77191091]
[1753123162922,88.5,194.84,194.78,6.63740774]
[1753123163128,36.84,194.83,194.79,6.63740774]
[1753123163336,36.84,194.83,194.8,6.63740774]
[1753123163631,36.84,194.83,194.8,7.31740774]
[1753123163831,36.84,194.83,194.81,0.68]
[1753123164433,7.31740774,194.82,194.76,5.13450317]
[1753123164635,36.84,194.81,194.76,12.45191091]
[1753123164838,36.84,194.81,194.77,12.45164174]
[1753123165226,36.84,194.81,194.77,16.43595416]
[1753123166040,88.5,194.84,194.8,10.62172016]
[1753123166341,36.84,194.83,194.81,11.30172016]
[1753123166716,36.84,194.83,194.82,0.68]
[1753123166937,36.84,194.83,194.8,10.62172016]
[1753123167340,36.84,194.83,194.81,0.68]
[1753123167633,36.84,194.83,194.81,11.30172016]
[1753123168645,36.84,194.83,194.82,10.62172016]
[1753123168858,36.84,194.83,194.81,11.30172016]
[1753123169340,36.84,194.83,194.81,16.43474356]
[1753123169722,88.5,194.82,194.76,0.68]
[1753123169915,125.32,194.81,194.76,0.68]
[1753123170116,125.32,194.81,194.77,10.62172016]
[1753123170333,125.32,194.81,194.78,0.68]
[1753123171012,125.32,194.81,194.78,11.30172016]
[1753123171941,125.32,194.81,194.8,10.62172016]
[1753123172126,125.32,194.81,194.8,11.30172016]
[1753123172330,88.5,194.81,194.8,11.30172016]
[1753123172537,125.32,194.81,194.8,11.30172016]
[1753123172739,88.5,194.81,194.8,0.68]
[1753123173049,125.32,194.81,194.8,11.30172016]
[1753123173642,125.32,194.81,194.8,16.43519038]
[1753123173844,125.32,194.81,194.8,5.81347022]
[1753123174030,125.32,194.81,194.79,10.62172016]
[1753123174520,125.32,194.81,194.79,11.30172016]
[1753123174720,125.32,194.81,194.8,0.68]
[1753123174943,125.32,194.81,194.8,11.30172016]
[1753123175646,125.32,194.81,194.8,16.43519038]
[1753123176346,36.82,194.81,194.8,16.43519038]
[1753123177020,88.5,194.85,194.8,16.43519038]
[1753123177247,88.5,194.88,194.84,10.62172016]
[1753123177554,26.69,194.91,194.87,10.62172016]
[1753123177555,88.5,194.91,194.87,10.62172016]
[1753123177722,88.5,194.91,194.9,10.62172016]
[1753123178051,0.06,194.96,194.9,19.29982016]
[1753123178221,0.06,194.96,194.95,10.62172016]
[1753123178425,0.06,194.96,194.91,1.1930573]
[1753123178622,0.06,194.96,194.95,10.62172016]
[1753123178927,0.06,194.96,194.95,11.30172016]
[1753123179122,0.06,194.96,194.95,16.43124054]
[1753123180749,0.06,194.96,194.95,5.80952038]
[1753123181048,0.06,194.96,194.95,16.43124054]
[1753123182443,0.06,194.96,194.95,5.80952038]
[1753123182826,0.06,194.96,194.95,16.43124054]
[1753123184139,0.06,194.96,194.95,10.62172016]
[1753123184341,0.06,194.96,194.95,11.30172016]
[1753123186049,0.06,194.96,194.95,16.43124054]
[1753123186946,0.06,194.96,194.95,0.68]
[1753123187248,0.06,194.96,194.94,10.62172016]
[1753123188031,37.47,194.95,194.91,0.68748187]
[1753123188234,0.06,194.96,194.94,10.62172016]
[1753123188555,36.78,194.95,194.94,10.62172016]
[1753123188736,36.78,194.95,194.91,0.68748187]
[1753123188934,36.78,194.95,194.92,10.62172016]
[1753123189258,36.78,194.95,194.91,0.68748187]
[1753123189259,36.78,194.95,194.94,10.62172016]
[1753123190937,36.78,194.95,194.91,5.81780089]
[1753123191147,36.78,194.95,194.94,10.62172016]
[1753123191355,37.47,194.95,194.91,0.68748187]
[1753123191553,88.56,194.96,194.94,10.62172016]
[1753123191858,125.34,194.96,194.95,11.30172016]
[1753123192060,125.34,194.96,194.95,10.62172016]
[1753123193345,88.56,194.96,194.95,10.62172016]
[1753123195939,89.25,194.96,194.93,10.62172016]
[1753123196139,36.78,194.95,194.93,10.62172016]
[1753123196965,36.78,194.95,194.91,5.81796528]
[1753123197161,36.78,194.95,194.93,10.62172016]
[1753123197342,36.78,194.95,194.94,11.30172016]
[1753123197657,0.06,194.96,194.94,11.30172016]
[1753123197841,0.06,194.97,194.95,11.81467219]
[1753123198158,0.06,195.02,194.95,11.81467219]
[1753123198159,0.06,195.02,194.96,48.81694032]
[1753123198342,0.06,195.02,194.99,26.37190844]
[1753123198861,0.06,195.02,194.99,16.43018828]
[1753123200038,0.06,195.02,194.99,5.80846812]
[1753123200236,0.06,195.02,194.96,5.80906387]
[1753123200535,0.06,194.96,194.9,5.1307346]
[1753123200734,0.06,194.96,194.82,10.0]
[1753123200735,17.26222016,194.91,194.88,0.51313628]
[1753123200965,17.26222016,194.91,194.75,6.3274]
[1753123200966,37.71,194.9,194.75,7.0074]
[1753123201138,10.62172016,194.87,194.76,6.32797699]
[1753123201337,48.31172016,194.86,194.8,10.62172016]
[1753123201552,37.69,194.86,194.81,10.62172016]
[1753123201740,37.69,194.86,194.82,10.62172016]
[1753123201939,37.69,194.86,194.78,0.68]
[1753123202141,37.69,194.86,194.81,10.62172016]
[1753123202334,42.15202717,194.86,194.82,10.62172016]
[1753123202560,37.69,194.86,194.79,0.68]
[1753123202758,0.67,194.85,194.8,10.62172016]
[1753123202941,52.77364331,194.86,194.79,10.62172016]
[1753123203138,0.67,194.85,194.79,10.62172016]
[1753123203342,0.67,194.85,194.8,10.62172016]
[1753123203547,37.02,194.86,194.81,10.62172016]
[1753123203760,0.67,194.85,194.8,10.62172016]
[1753123204162,42.15199174,194.86,194.77,5.81423625]
[1753123204365,37.02,194.86,194.82,10.62172016]
[1753123204552,37.02,194.86,194.83,10.62172016]
[1753123204740,37.02,194.86,194.85,10.62172016]
[1753123204946,37.02,194.86,194.79,5.13364395]
[1753123205266,37.69,194.86,194.83,10.62172016]
[1753123205466,37.02,194.86,194.85,10.62172016]
[1753123206168,2.2291,194.94,194.85,11.30172016]
[1753123206346,37.12,194.93,194.89,10.62172016]
[1753123206542,37.12,194.93,194.9,10.62172016]
[1753123206836,10.62172016,194.91,194.84,5.81241634]
[1753123207036,0.67,194.9,194.84,10.62172016]
[1753123207262,37.16,194.89,194.84,10.62172016]
[1753123207559,0.67,194.9,194.86,10.62172016]
[1753123207773,37.16,194.89,194.82,5.1326917]
[1753123207955,37.16,194.89,194.85,10.62172016]
[1753123208455,37.16,194.89,194.86,10.62172016]
[1753123208644,37.83,194.89,194.85,10.62172016]
[1753123208959,37.83,194.89,194.83,5.1326438]
[1753123209160,37.16,194.89,194.86,10.62172016]
[1753123209467,37.16,194.89,194.85,10.62172016]
[1753123209652,42.29115978,194.89,194.85,10.62172016]
[1753123209861,37.83,194.89,194.85,10.62172016]
[1753123210042,37.83,194.89,194.86,10.62172016]
[1753123210243,37.14,194.88,194.86,0.68]
[1753123210498,37.14,194.88,194.87,10.62172016]
[1753123210638,37.14,194.89,194.85,0.68]
[1753123210839,37.81,194.88,194.81,0.68]
[1753123211067,47.76172016,194.87,194.81,10.62172016]
[1753123211371,47.76172016,194.87,194.82,10.62172016]
[1753123211372,37.14,194.86,194.82,10.62172016]
[1753123211552,37.81,194.86,194.75,26.54347881]
[1753123211749,47.76172016,194.86,194.8,10.62172016]
[1753123211948,0.67,194.85,194.8,10.62172016]
[1753123212259,0.67,194.85,194.81,10.62172016]
[1753123212643,0.67,194.85,194.8,10.62172016]
[1753123213049,0.67,194.85,194.81,10.62172016]
[1753123213756,0.67,194.84,194.8,10.62172016]
[1753123214152,37.14,194.86,194.8,10.62172016]
[1753123214366,37.81,194.86,194.81,10.62172016]
[1753123214550,37.14,194.86,194.81,10.62172016]
[1753123214750,37.14,194.86,194.82,10.62172016]
[1753123215446,0.67,194.89,194.85,10.62172016]
[1753123215755,37.14,194.88,194.86,10.62172016]
[1753123217270,1.5591,194.94,194.87,11.30172016]
[1753123217482,37.12,194.93,194.9,10.62172016]
[1753123218353,37.79,194.93,194.9,10.62172016]
[1753123219076,37.12,194.93,194.9,10.62172016]
[1753123219274,37.12,194.93,194.91,10.62172016]
[1753123219459,37.79,194.93,194.9,10.62172016]
[1753123219655,0.67,194.92,194.89,10.62172016]
[1753123220047,37.12,194.93,194.91,10.62172016]
[1753123220252,37.12,194.93,194.92,10.62172016]
[1753123220553,37.2,194.95,194.92,11.30172016]
[1753123220753,37.2,194.95,194.9,5.13062979]
[1753123221077,0.67,194.94,194.91,10.62172016]
[1753123221775,11.29172016,194.93,194.86,10.62172016]
[1753123221979,37.18,194.92,194.9,0.03]
[1753123222150,37.85,194.92,194.9,0.03]
[1753123222356,37.18,194.92,194.9,0.03]
[1753123222578,0.67,194.91,194.9,0.03]
[1753123223568,5.80057308,194.91,194.9,0.03]
[1753123223971,33.20697721,194.91,194.9,0.03]
[1753123224170,33.20697721,194.91,194.86,0.03]
[1753123224171,16.78468397,194.89,194.86,0.03]
[1753123224488,37.18,194.88,194.79,10.62172016]
[1753123224656,10.62172016,194.85,194.78,5.13390799]
[1753123224856,37.26,194.84,194.79,10.62172016]
[1753123225052,37.93,194.84,194.79,10.62172016]
[1753123225360,37.26,194.84,194.8,10.62172016]
[1753123225574,125.76,194.84,194.8,11.30172016]
[1753123226079,99.79172016,194.83,194.77,10.62172016]
[1753123226256,99.79172016,194.83,194.75,0.03]
[1753123226257,10.62172016,194.82,194.76,10.62172016]
[1753123226458,126.43,194.81,194.76,10.62172016]
[1753123226665,99.79172016,194.8,194.75,0.03]
[1753123226861,21.9186813,194.78,194.75,0.03]
[1753123227173,37.62,194.77,194.75,0.03]
[1753123227684,0.67,194.76,194.75,0.03]
[1753123227862,37.78,194.76,194.75,0.03]
[1753123228179,37.76,194.77,194.75,11.33172016]
[1753123228362,37.76,194.77,194.76,11.30172016]
[1753123228884,37.76,194.78,194.77,5.13426092]
[1753123229062,37.76,194.78,194.77,15.75598108]
[1753123229373,37.76,194.78,194.77,16.43598108]
[1753123229881,37.76,194.78,194.77,15.75598108]
[1753123230468,37.76,194.78,194.77,10.62172016]
[1753123230868,37.72,194.79,194.77,15.75589067]
[1753123231077,37.72,194.79,194.78,10.62172016]
[1753123231859,37.72,194.79,194.78,15.75571749]
[1753123233091,0.66,194.87,194.78,16.43571749]
[1753123233310,37.68,194.86,194.84,10.62172016]
[1753123233461,37.68,194.85,194.84,10.62172016]
[1753123233666,37.68,194.88,194.84,11.30172016]
[1753123233972,37.68,194.88,194.87,5.13162621]
[1753123234172,37.68,194.88,194.86,10.62172016]
[1753123234761,37.68,194.88,194.87,10.62172016]
[1753123234961,37.68,194.88,194.87,0.68]
[1753123235160,37.68,194.88,194.87,10.62172016]
[1753123236194,37.60317,194.88,194.87,10.62172016]
[1753123236685,37.60317,194.88,194.87,15.75334637]
[1753123237566,0.72,194.96,194.87,16.43334637]
[1753123237765,37.64,194.95,194.87,5.81162621]
[1753123238068,37.64,194.95,194.89,10.62172016]
[1753123238281,0.66,194.94,194.89,10.62172016]
[1753123238491,37.64,194.95,194.9,10.62172016]
[1753123238790,38.3,194.95,194.91,10.62172016]
[1753123239166,0.06,194.96,194.91,10.62172016]
[1753123239365,37.6,194.94,194.91,10.62172016]
[1753123239587,37.6,194.94,194.93,10.62172016]
[1753123239885,37.6,194.94,194.93,11.30172016]
[1753123240075,0.06,194.96,194.93,0.68]
[1753123240276,0.06,194.96,194.95,10.62172016]
[1753123240512,0.06,194.96,194.95,15.75124054]
[1753123241282,0.06,194.96,194.92,5.13030987]
[1753123241486,0.66,194.95,194.91,5.13056712]
[1753123241677,0.66,194.95,194.91,15.75228728]
[1753123242071,0.06,194.96,194.88,10.62172016]
[1753123242072,11.28172016,194.94,194.88,10.62172016]
[1753123242271,37.56,194.93,194.88,15.75308304]
[1753123242474,37.56,194.93,194.89,10.62172016]
[1753123242682,0.66,194.92,194.89,10.62172016]
[1753123245282,37.56,194.93,194.89,10.62172016]
[1753123245588,0.66,194.92,194.87,10.62172016]
[1753123245794,89.16,194.91,194.88,10.62172016]
[1753123246294,37.48,194.9,194.88,10.62172016]
[1753123247088,37.48,194.9,194.87,15.75318947]
[1753123247894,37.48,194.9,194.85,10.62172016]
[1753123247895,0.66,194.89,194.85,10.62172016]
[1753123248093,0.66,194.88,194.84,10.62172016]
[1753123248395,10.62172016,194.86,194.78,0.71]
[1753123248597,88.5,194.85,194.8,10.62172016]
[1753123248901,10.62172016,194.81,194.78,0.03]
[1753123249078,37.44,194.8,194.78,0.03]
[1753123249276,38.1,194.8,194.78,0.03]
[1753123249471,0.66,194.79,194.78,0.03]
[1753123249987,11.28172016,194.79,194.78,0.03]
[1753123250193,0.66,194.79,194.78,0.03]
[1753123250381,11.28172016,194.79,194.78,0.03]
[1753123251289,0.66,194.79,194.78,0.03]
[1753123251601,16.41545392,194.79,194.78,0.03]
[1753123253898,148.46,194.83,194.78,10.65172016]
[1753123254082,37.44,194.82,194.78,10.65172016]
[1753123254401,38.1,194.82,194.78,0.03]
[1753123254898,37.44,194.82,194.78,0.03]
[1753123255088,0.66,194.81,194.78,0.03]
[1753123255676,16.41494935,194.81,194.78,0.03]
[1753123256094,15.75494935,194.81,194.78,0.03]
[1753123256300,0.66,194.8,194.78,0.03]
[1753123256505,37.44,194.79,194.78,0.03]
[1753123257176,38.1,194.79,194.78,0.03]
[1753123257578,43.23373376,194.79,194.78,0.03]
[1753123258284,53.85545392,194.79,194.78,0.03]
[1753123259216,43.23373376,194.79,194.78,0.03]
[1753123259506,70.64013789,194.79,194.78,0.03]
[1753123259681,77.20183789,194.79,194.78,0.03]
[1753123260879,164.58468397,194.78,194.75,0.03]
[1753123261082,53.40640413,194.76,194.75,0.03]
[1753123261302,5.13478818,194.75,194.74,0.63287202]
[1753123261600,164.58468397,194.74,194.71,0.03]
[1753123261801,36.62172016,194.72,194.71,0.03]
[1753123262095,164.58468397,194.71,194.6,0.7]
[1753123262306,164.58468397,194.71,194.6,10.62172016]
[1753123262307,10.62172016,194.66,194.6,10.62172016]
[1753123262497,37.36,194.65,194.6,10.62172016]
[1753123262698,125.86,194.65,194.6,10.62172016]
[1753123262883,99.79172016,194.64,194.55,5.13984181]
[1753123263089,37.38,194.63,194.58,10.62172016]
[1753123263286,42.51801564,194.63,194.59,10.62172016]
[1753123263602,42.51801564,194.63,194.58,0.7]
[1753123263603,88.5,194.62,194.58,0.7]
[1753123263900,37.38,194.61,194.59,11.32172016]
[1753123264291,88.5,194.67,194.6,11.32172016]
[1753123264493,37.38,194.68,194.66,10.62172016]
[1753123264693,37.38,194.69,194.67,11.32172016]
[1753123264891,37.38,194.7,194.68,10.62172016]
[1753123265193,37.38,194.69,194.67,10.62172016]
[1753123265392,37.38,194.68,194.67,0.7]
[1753123265584,37.38,194.68,194.67,10.62172016]
[1753123266218,37.38,194.68,194.65,10.62172016]
[1753123266409,37.38,194.68,194.66,10.62172016]
[1753123267127,37.38,194.68,194.64,0.7]
[1753123267314,37.38,194.68,194.66,10.62172016]
[1753123267508,37.38,194.68,194.67,10.62172016]
[1753123267700,37.38,194.68,194.64,10.62172016]
[1753123267903,43.18674121,194.68,194.64,10.62172016]
[1753123268121,0.67,194.67,194.61,5.13825932]
[1753123268329,0.67,194.67,194.64,10.62172016]
[1753123268715,42.51674121,194.68,194.64,10.62172016]
[1753123268906,38.05,194.68,194.64,10.62172016]
[1753123269417,43.18667043,194.68,194.64,10.62172016]
[1753123269619,37.38,194.68,194.65,10.62172016]
[1753123270722,37.38,194.68,194.66,10.62172016]
[1753123271119,38.05,194.68,194.62,5.83816206]
[1753123271417,38.05,194.68,194.64,10.62172016]
[1753123271919,43.18677639,194.68,194.64,10.62172016]
[1753123272125,88.5,194.67,194.63,10.62172016]
[1753123272426,37.3,194.66,194.63,10.62172016]
[1753123272625,88.5,194.65,194.62,10.62172016]
[1753123272829,37.28,194.64,194.62,10.62172016]
[1753123273532,5.13795406,194.63,194.6,10.62172016]
[1753123273711,37.28,194.62,194.6,10.62172016]
[1753123273911,37.28,194.62,194.59,10.62172016]
[1753123274137,0.67,194.61,194.58,0.03]
[1753123274341,37.28,194.6,194.58,0.03]
[1753123276250,104.25972898,194.63,194.58,0.03]
[1753123276431,37.26,194.62,194.58,0.03]
[1753123276632,126.43,194.62,194.58,0.03]
[1753123277024,10.62172016,194.6,194.58,0.03]
[1753123277234,89.17,194.61,194.58,0.03]
[1753123277445,37.22,194.6,194.58,10.65172016]
[1753123278629,37.22,194.6,194.58,0.03]
[1753123278816,0.67,194.59,194.58,0.03]
[1753123279549,88.5,194.65,194.58,11.35172016]
[1753123279860,37.26,194.64,194.63,10.62172016]
[1753123280029,37.26,194.64,194.62,10.62172016]
[1753123280362,37.26,194.64,194.6,15.76032329]
[1753123280525,16.428363,194.68,194.62,10.62172016]
[1753123280726,37.24,194.67,194.62,10.62172016]
[1753123281048,37.24,194.67,194.61,0.7]
[1753123281049,0.67,194.66,194.61,10.62172016]
[1753123281226,37.91,194.65,194.6,10.62172016]
[1753123281423,0.67,194.64,194.59,10.62172016]
[1753123281621,37.91,194.63,194.58,5.16924356]
[1753123281927,0.67,194.62,194.58,0.03]
[1753123282154,37.26,194.61,194.58,0.03]
[1753123282349,37.93,194.61,194.58,0.03]
[1753123282654,5.80874614,194.6,194.58,0.03]
[1753123282942,37.26,194.59,194.58,0.03]
[1753123283326,37.93,194.59,194.58,0.03]
[1753123284028,37.26,194.59,194.58,0.03]
[1753123285533,5.13795406,194.63,194.58,0.03]
[1753123285732,88.5,194.62,194.6,10.62172016]
[1753123285944,125.8,194.62,194.6,10.62172016]
[1753123286840,88.5,194.62,194.61,11.32172016]
[1753123287038,125.78,194.62,194.61,11.32172016]
[1753123287227,125.78,194.62,194.61,10.62172016]
[1753123288230,125.78,194.62,194.59,10.62172016]
[1753123289060,125.78,194.62,194.6,10.62172016]
[1753123289557,0.67,194.61,194.58,0.03]
[1753123289734,37.24,194.6,194.58,0.03]
[1753123290238,37.91,194.6,194.58,0.03]
[1753123290745,5.13901022,194.59,194.58,0.03]
[1753123290949,5.80901022,194.59,194.58,0.03]
[1753123292448,16.43073038,194.59,194.58,0.03]
[1753123293739,33.21541435,194.59,194.58,0.03]
[1753123293945,22.59369419,194.59,194.58,0.03]
[1753123294259,33.21541435,194.59,194.58,0.03]
[1753123296558,16.43073038,194.59,194.58,0.03]
[1753123296941,16.44073038,194.59,194.58,0.03]
[1753123300465,52.90073038,194.59,194.58,0.03]
[1753123300659,53.58073038,194.59,194.58,0.03]
[1753123301442,53.58073038,194.59,194.57,0.57683731]
[1753123301443,60.02693038,194.59,194.57,0.57683731]
[1753123301668,175.88640413,194.58,194.54,0.03]
[1753123301857,26.0,194.55,194.54,0.03]
[1753123302051,73.86172016,194.55,194.54,0.03]
[1753123302367,79.68178698,194.55,194.54,0.03]
[1753123303365,16.78468397,194.54,194.44,0.7]
[1753123303563,10.62172016,194.5,194.44,11.32172016]
[1753123303742,10.62172016,194.47,194.41,0.7]
[1753123303942,37.9,194.49,194.37,8.11248268]
[1753123303943,37.22,194.46,194.37,0.7]
[1753123304159,5.14350375,194.42,194.38,10.62172016]
[1753123304447,37.92,194.41,194.34,5.14562107]
[1753123304641,37.26,194.4,194.35,0.7]
[1753123304940,37.26,194.39,194.38,10.62172016]
[1753123305149,37.26,194.39,194.38,0.7]
[1753123305360,37.26,194.39,194.36,10.62172016]
[1753123305561,37.26,194.39,194.38,10.62172016]
[1753123305763,5.142742,194.45,194.38,11.32172016]
[1753123305947,37.26,194.44,194.41,10.62172016]
[1753123306145,16.78468397,194.49,194.42,0.7]
[1753123306359,10.62172016,194.47,194.42,11.32172016]
[1753123306577,95.411,194.5,194.43,11.32172016]
[1753123306746,37.24,194.49,194.44,11.32172016]
[1753123306948,37.24,194.49,194.45,11.32172016]
[1753123307153,10.62172016,194.48,194.43,0.7]
[1753123307356,10.62172016,194.53,194.47,10.62172016]
[1753123307571,42.40085955,194.52,194.47,10.62172016]
[1753123307773,37.32,194.51,194.48,11.32172016]
[1753123308268,10.62172016,194.49,194.44,0.7]
[1753123308572,37.3,194.48,194.45,10.62172016]
[1753123308759,16.78468397,194.53,194.45,11.32172016]
[1753123309069,10.62172016,194.5,194.45,11.32172016]
[1753123309273,37.3,194.49,194.46,0.7]
[1753123309463,10.62172016,194.51,194.46,0.7]
[1753123309766,37.3,194.5,194.47,11.32172016]
[1753123309972,37.3,194.49,194.48,0.7]
[1753123310161,37.3,194.49,194.48,10.62172016]
[1753123310666,5.14061391,194.53,194.48,11.32172016]
[1753123310873,37.3,194.52,194.5,10.62172016]
[1753123311060,5.14061391,194.53,194.45,5.14267526]
[1753123311262,5.14138817,194.5,194.4,5.65841935]
[1753123311568,37.34,194.49,194.46,10.62172016]
[1753123311951,5.14138817,194.5,194.46,10.62172016]
[1753123312171,5.14138817,194.5,194.48,10.62172016]
[1753123312469,37.36,194.49,194.48,10.62172016]
[1753123313273,37.36,194.49,194.46,10.62172016]
[1753123313572,38.04,194.49,194.46,10.62172016]
[1753123313765,43.18165252,194.49,194.44,0.03]
[1753123313966,43.18165252,194.49,194.45,10.62172016]
[1753123314169,0.68,194.48,194.44,10.65172016]
[1753123314350,0.68,194.47,194.44,10.65172016]
[1753123314549,37.34,194.46,194.44,10.65172016]
[1753123315147,42.48255517,194.46,194.44,10.65172016]
[1753123315754,42.48255517,194.46,194.44,0.03]
[1753123316870,5.14223927,194.47,194.44,0.03]
[1753123317160,37.32,194.46,194.44,10.65172016]
[1753123317369,37.3,194.45,194.44,10.65172016]
[1753123317569,0.06,194.54,194.44,11.35172016]
[1753123317887,37.38,194.54,194.53,10.62172016]
[1753123318180,0.06,194.54,194.53,11.32172016]
[1753123318475,37.38,194.54,194.53,10.62172016]
[1753123318666,37.38,194.54,194.5,0.7]
[1753123318876,37.38,194.54,194.52,10.62172016]
[1753123319077,42.52042027,194.54,194.5,10.62172016]
[1753123320676,5.20042027,194.54,194.51,10.62172016]
[1753123320881,5.20042027,194.54,194.53,10.62172016]
[1753123320882,0.06,194.54,194.53,10.62172016]
[1753123321181,0.06,194.58,194.53,11.83577968]
[1753123321361,37.36,194.58,194.57,10.62172016]
[1753123321557,37.36,194.58,194.5,26.0]
[1753123321758,37.36,194.58,194.54,10.62172016]
[1753123321961,42.49935566,194.58,194.54,10.62172016]
[1753123322485,0.67,194.57,194.52,10.62172016]
[1753123322661,37.28,194.56,194.54,10.62172016]
[1753123322865,37.28,194.56,194.53,10.62172016]
[1753123323274,37.28,194.56,194.54,10.62172016]
[1753123323467,42.4199488,194.56,194.52,10.62172016]
[1753123323661,37.28,194.56,194.52,11.30172016]
[1753123323863,42.41981736,194.56,194.52,10.62172016]
[1753123324367,43.08981736,194.56,194.52,10.62172016]
[1753123326277,42.41981736,194.56,194.52,0.68]
[1753123326463,42.41981736,194.56,194.53,10.62172016]
[1753123326662,88.5,194.55,194.53,10.62172016]
[1753123327181,88.5,194.55,194.52,10.62172016]
[1753123327564,93.64009964,194.55,194.52,10.62172016]
[1753123327776,88.5,194.55,194.52,10.62172016]
[1753123328179,93.64007869,194.55,194.52,10.62172016]
[1753123328381,88.5,194.55,194.53,11.30172016]
[1753123328561,88.5,194.55,194.54,11.30172016]
[1753123328769,125.76,194.55,194.54,11.30172016]
[1753123328968,88.5,194.55,194.54,11.30172016]
[1753123329180,125.74,194.55,194.54,11.30172016]
[1753123329486,88.5,194.55,194.52,10.62172016]
[1753123329690,125.74,194.55,194.52,10.62172016]
[1753123329992,37.24,194.54,194.52,10.62172016]
[1753123330768,93.64017744,194.55,194.52,11.30172016]
[1753123330769,88.5,194.55,194.52,11.30172016]
[1753123330973,37.22,194.54,194.53,0.68]
[1753123331279,88.5,194.55,194.53,10.62172016]
[1753123331482,37.22,194.54,194.53,10.62172016]
[1753123333273,88.5,194.55,194.53,11.30172016]
[1753123333479,88.5,194.55,194.54,10.62172016]
[1753123333673,125.7,194.55,194.54,10.62172016]
[1753123334067,125.7,194.55,194.53,11.30172016]
[1753123334270,125.7,194.55,194.52,10.65172016]
[1753123334475,130.84011442,194.55,194.52,0.03]
[1753123334792,37.2,194.54,194.52,0.03]
[1753123335095,37.2,194.53,194.52,0.03]
[1753123337391,42.34059528,194.53,194.52,0.03]
[1753123338770,37.2,194.53,194.52,0.03]
[1753123339185,0.67,194.53,194.52,0.03]
[1753123339372,37.16,194.53,194.52,0.03]
[1753123339776,37.12,194.53,194.52,0.03]
[1753123341489,37.1,194.53,194.52,0.03]
[1753123341670,0.67,194.53,194.52,0.03]
[1753123341873,37.14,194.53,194.52,0.03]
[1753123342374,42.95059528,194.53,194.52,0.03]
[1753123343286,5.81059528,194.53,194.52,0.03]
[1753123343599,42.95059528,194.53,194.52,0.03]
[1753123344382,49.6078124,194.53,194.52,0.03]
[1753123344579,42.28059528,194.53,194.52,0.03]
[1753123344898,5.14059528,194.53,194.52,0.03]
[1753123345074,42.26059528,194.53,194.52,0.03]
[1753123345279,42.93059528,194.53,194.52,0.03]
[1753123346695,49.5878124,194.53,194.52,0.03]
[1753123348486,50.0878124,194.53,194.52,0.03]
[1753123348892,43.43059528,194.53,194.52,0.03]